{"text_format":"3","workbook":"xlsx","n_sheets":6,"sheets":["Журнал звонков","Контактные данные клиентов","Перед звонком","Первый звонок","Информация о продажах","Повторные звонки"],"not_rendered":{"defined_names":14},"read":"whole","date_system":"1900"}

{"sheet":"Журнал звонков","index":0,"n_rows":13,"n_cols":7,"rows_kept":13}
[null," Название организации"]
[null,"Журнал звонков"]
[null,"№ звонка","Клиент","Организация","Дата","Время","Примечания"]
[null,1,"Григорий Иванов",{"$f":"IF(ЖурналЗвонков[[#This Row],[Клиент]]=\"\",\"\",IFERROR(VLOOKUP(ЖурналЗвонков[[#This Row],[Клиент]],КонтактныеДанныеКлиентов[],2,0),\"Not Found\"))","v":"Proseware, Inc."},{"$f":"TODAY()-5","v":"2017-10-12"},"08:30:00"]
[null,2,"Артем Кузнецов",{"$f":"IF(ЖурналЗвонков[[#This Row],[Клиент]]=\"\",\"\",IFERROR(VLOOKUP(ЖурналЗвонков[[#This Row],[Клиент]],КонтактныеДанныеКлиентов[],2,0),\"Not Found\"))","v":"Litware, Inc."},{"$f":"TODAY()-5","v":"2017-10-12"},"09:00:00"]
[null,3,"Евгения Маслова",{"$f":"IF(ЖурналЗвонков[[#This Row],[Клиент]]=\"\",\"\",IFERROR(VLOOKUP(ЖурналЗвонков[[#This Row],[Клиент]],КонтактныеДанныеКлиентов[],2,0),\"Not Found\"))","v":"Northwind Traders"},"2017-10-12","09:30:00"]
[null,4,"Андрей Глазков",{"$f":"IF(ЖурналЗвонков[[#This Row],[Клиент]]=\"\",\"\",IFERROR(VLOOKUP(ЖурналЗвонков[[#This Row],[Клиент]],КонтактныеДанныеКлиентов[],2,0),\"Not Found\"))","v":"Lucerne Publishing"},"2017-10-12","10:00:00"]
[null,5,"Виктор Игнатьев",{"$f":"IF(ЖурналЗвонков[[#This Row],[Клиент]]=\"\",\"\",IFERROR(VLOOKUP(ЖурналЗвонков[[#This Row],[Клиент]],КонтактныеДанныеКлиентов[],2,0),\"Not Found\"))","v":"Margie's Travel"},"2017-10-12","10:30:00"]
[null,6,"Григорий Иванов",{"$f":"IF(ЖурналЗвонков[[#This Row],[Клиент]]=\"\",\"\",IFERROR(VLOOKUP(ЖурналЗвонков[[#This Row],[Клиент]],КонтактныеДанныеКлиентов[],2,0),\"Not Found\"))","v":"Proseware, Inc."},{"$f":"TODAY()-3","v":"2017-10-14"},"11:00:00"]
[null,7,"Артем Кузнецов",{"$f":"IF(ЖурналЗвонков[[#This Row],[Клиент]]=\"\",\"\",IFERROR(VLOOKUP(ЖурналЗвонков[[#This Row],[Клиент]],КонтактныеДанныеКлиентов[],2,0),\"Not Found\"))","v":"Litware, Inc."},{"$f":"TODAY()-3","v":"2017-10-14"},"11:30:00"]
[null,8,"Григорий Иванов",{"$f":"IF(ЖурналЗвонков[[#This Row],[Клиент]]=\"\",\"\",IFERROR(VLOOKUP(ЖурналЗвонков[[#This Row],[Клиент]],КонтактныеДанныеКлиентов[],2,0),\"Not Found\"))","v":"Proseware, Inc."},{"$f":"TODAY()-1","v":"2017-10-16"},"12:00:00"]
[null,9,"Виктор Игнатьев",{"$f":"IF(ЖурналЗвонков[[#This Row],[Клиент]]=\"\",\"\",IFERROR(VLOOKUP(ЖурналЗвонков[[#This Row],[Клиент]],КонтактныеДанныеКлиентов[],2,0),\"Not Found\"))","v":"Margie's Travel"},{"$f":"TODAY()-1","v":"2017-10-16"},"12:30:00"]
[null,10,"Виктор Игнатьев",{"$f":"IF(ЖурналЗвонков[[#This Row],[Клиент]]=\"\",\"\",IFERROR(VLOOKUP(ЖурналЗвонков[[#This Row],[Клиент]],КонтактныеДанныеКлиентов[],2,0),\"Not Found\"))","v":"Margie's Travel"},{"$f":"TODAY()","v":"2017-10-17"},"13:00:00"]

{"sheet":"Контактные данные клиентов","index":1,"n_rows":8,"n_cols":8,"rows_kept":8}
[null,{"$f":"НазваниеОрганизации","v":" Название организации"}]
[null,"Контактные данные клиентов"]
[null,"Имя клиента","Название организации","Адрес","Город и почтовый индекс","Основной телефон","Дополнительный телефон","Электронный адрес"]
[null,"Артем Кузнецов","Litware, Inc.","ул. Подгорная, 100","Архангельск, 123456","(541) 555-01-35","(541) 555-01-36","artem@litwareinc.com"]
[null,"Андрей Глазков","Lucerne Publishing","пр. Кирова, 56","Волгоград, 234567","(425) 555-01-98","(425) 555-01-99","andrey@lucernepublishing.com"]
[null,"Виктор Игнатьев","Margie's Travel","ул. Солнечная, 98","Екатеринбург, 345678","(888) 555-01-25","(888) 555-01-26","victor@margiestravel.com"]
[null,"Евгения Маслова","Northwind Traders","пр. Героев, 89","Ростов-на-Дону, 456789","(541) 555-01-75","(541) 555-01-76","evgeniya@northwindtraders.com"]
[null,"Григорий Иванов","Proseware, Inc.","ул. Победы, 123","Краснодар, 567890","(509) 555-01-50","(509) 555-01-51","gregory@proseware.com"]

{"sheet":"Перед звонком","index":2,"n_rows":13,"n_cols":3,"rows_kept":13}
[null,{"$f":"НазваниеОрганизации","v":" Название организации"}]
[null,"Контрольный список для звонков"]
[null,"Отметка","Перед звонком"]
[null,null,"Изучить историю клиента"]
[null,null,"Изучить историю работодателей клиента"]
[null,null,"Изучить приоритеты и стратегию продаж"]
[null,null,"Добавьте элемент"]
[null,null,"Добавьте элемент"]
[null,null,"Добавьте элемент"]
[null,null,"Добавьте элемент"]
[null,null,"Добавьте элемент"]
[null,null,"Добавьте элемент"]
[null,null,"Добавьте элемент"]

{"sheet":"Первый звонок","index":3,"n_rows":13,"n_cols":3,"rows_kept":13}
[null,{"$f":"НазваниеОрганизации","v":" Название организации"}]
[null,"Контрольный список для звонков"]
[null,"Отметка","Первый звонок"]
[null,null,"Позвонить непосредственно клиенту"]
[null,null,"Представиться и понятно объяснить суть своего предложения"]
[null,null,"Добавьте элемент"]
[null,null,"Добавьте элемент"]
[null,null,"Добавьте элемент"]
[null,null,"Добавьте элемент"]
[null,null,"Добавьте элемент"]
[null,null,"Добавьте элемент"]
[null,null,"Добавьте элемент"]
[null,null,"Добавьте элемент"]

{"sheet":"Информация о продажах","index":4,"n_rows":13,"n_cols":3,"rows_kept":13}
[null,{"$f":"НазваниеОрганизации","v":" Название организации"}]
[null,"Контрольный список для звонков"]
[null,"Отметка","Информация о продажах"]
[null,null,"Понятная и увлекательная презентация продукта или услуги"]
[null,null,"Рассмотреть все основные аспекты"]
[null,null,"Упомянуть присутствие в Интернете (например, веб-сайт, социальные сети)"]
[null,null,"Добавьте элемент"]
[null,null,"Добавьте элемент"]
[null,null,"Добавьте элемент"]
[null,null,"Добавьте элемент"]
[null,null,"Добавьте элемент"]
[null,null,"Добавьте элемент"]
[null,null,"Добавьте элемент"]

{"sheet":"Повторные звонки","index":5,"n_rows":13,"n_cols":3,"rows_kept":13}
[null,{"$f":"НазваниеОрганизации","v":" Название организации"}]
[null,"Контрольный список для звонков"]
[null,"Отметка","Сведения для повторных звонков"]
[null,null,"Контактные данные клиента"]
[null,null,"Личные данные клиента"]
[null,null,"Предпочтения клиента"]
[null,null,"Перенесенный звонок?"]
[null,null,"Продажа совершена?"]
[null,null,"Добавьте элемент"]
[null,null,"Добавьте элемент"]
[null,null,"Добавьте элемент"]
[null,null,"Добавьте элемент"]
[null,null,"Добавьте элемент"]